Cogmind - Beta 13 @@@ ROGUE MODE // 2024.06.10 @ 23:01:02 Player: Sherlockkat Result: Self-destructed Performance ------------- Evolutions (1) 500 Regions Visited (2) 400 Robots Destroyed (14) 70 Value Destroyed (439) 439 Prototype IDs (0) 0 Alien Tech Used (0) 0 Bonus (0) 0 TOTAL SCORE: 1409 Bonus ------- None Cogmind --------- Core Integrity 260/400 Matter 279/300 Energy 22/100 System Corruption 0% Temperature Cool (89) Movement Core (450) Ox8 Location -9/Materials Parts ------- > --- POWER (1) -------- (None) > --- PROPULSION (3) --- (None) > --- UTILITY (3) ------ Large Storage Unit > --- WEAPON (2) ------- EM Pulse Gun Beam Rifle > --- INVENTORY (15) --- Ion Engine Light Ion Engine Disposable Heat Sink Huge Storage Unit Shield Generator Beam Rifle Spread Laser Beam Cannon Heavy Assault Rifle Peak State ------------ > --- POWER ------------ Ion Engine > --- PROPULSION ------- Light Treads Light Treads > --- UTILITY ---------- Heat Sink Large Storage Unit Hardened Light Armor Plating > --- WEAPON ----------- Beam Rifle Assault Rifle > --- INVENTORY -------- Ion Engine Light Ion Engine Huge Storage Unit Shield Generator EM Pulse Gun Beam Rifle Spread Laser Beam Cannon [Rating: 11] Favorites ----------- Power Ion Engine Engine Ion Engine Propulsion Light Treads Treads Light Treads Utility Large Storage Unit Device Heat Sink Storage Large Storage Unit Protection Hardened Light Armor Plating Weapon Assault Rifle Energy Gun Beam Rifle Ballistic Gun Assault Rifle Build | -11 -10 -9 ------- Run | Yrd Mat Mat Slots Evolved 2 | . . 2 Power . | . . . Propulsion 1 | . . 1 Utility 1 | . . 1 Weapon . | . . . Parts Attached 12 | 6 3 3 Power 1 | 1 . . Engine 1 | 1 . . Core . | . . . Reactor . | . . . Propulsion 3 | 2 . 1 Treads 3 | 2 . 1 Leg . | . . . Wheel . | . . . Hover . | . . . Flight . | . . . Utility 4 | 1 2 1 Device 1 | . 1 . Storage 2 | 1 1 . Processor . | . . . Hackware . | . . . Protection 1 | . . 1 Artifact . | . . . Weapon 4 | 2 1 1 Energy Gun 3 | 1 1 1 Energy Cannon . | . . . Ballistic Gun 1 | 1 . . Ballistic Cannon . | . . . Launcher . | . . . Special Weapon . | . . . Impact Weapon . | . . . Slashing Weapon . | . . . Piercing Weapon . | . . . Special Melee Weapon . | . . . Unidentified Prototypes . | . . . Parts Lost 5 | . 1 4 Power 1 | . . 1 Propulsion 2 | . . 2 Utility 1 | . . 1 Weapon 1 | . 1 . Highest Loss Streak 4 | . 1 4 To Critical Strikes . | . . . Average Slot Usage (%) 91 | . 95 80 Engine 12 | . 14 9 Treads 25 | . 28 19 Device 9 | . 9 10 Storage 13 | . 14 11 Protection 2 | . . 8 Energy Gun 13 | . 14 11 Ballistic Gun 12 | . 14 10 Naked Turns . | . . . Heaviest Build 36 | 14 31 36 Greatest Support 40 | 40 40 40 Greatest Overweight (x) . | . . . Average Overweight (x) . | . . . Largest Inventory Capacity 15 | 8 15 15 Average Capacity 13 | 6 14 15 Most Carried 10 | 2 7 10 Average Carried 5 | 1 5 8 Final Capacity 15 | 8 15 15 Final Carried 9 | 2 7 9 Class Distribution -------------------- 100% | Mutant Dominant Class ---------------- Mutant | -10/Materials Mutant | -9/Materials Resources | -11 -10 -9 ----------- Run | Yrd Mat Mat Matter Collected 403 | 260 115 28 Remotely . | . . . Salvage Created 690 | . 588 102 Parts 36 | . 34 2 Haulers Intercepted . | . . . Recyclers Shooed . | . . . Parts Field Recycled . | . . . Retrieved Matter . | . . . Parts Self-Destructed . | . . . Prevented . | . . . Kills | -11 -10 -9 ------- Run | Yrd Mat Mat Combat Hostiles Destroyed 11 | . 9 2 Guns 11 | . 9 2 Classes Destroyed 5 | . 3 2 Recycler 2 | . 2 . Operator 1 | . 1 . Grunt 9 | . 9 . Duelist 1 | . . 1 Sentry 1 | . . 1 Best Kill Streak 3 | . 3 1 Combat Bots Only 2 | . 2 1 Max Kills in Single Turn 1 | . 1 1 Gunslinging . | . . . Exploded . | . . . Melee . | . . . Uniques/NPCs Destroyed . | . . . Combat | -11 -10 -9 -------- Run | Yrd Mat Mat Hostile Shots Fired 75 | . 31 44 Missed 19 | . 8 11 Damage Taken 850 | . 280 570 Core 151 | . 11 140 Absorbed by Shields . | . . . Core Remaining (%) 97 | 100 95 . Volleys Fired 51 | . 30 21 Largest 2 | . 2 2 Hottest 96 | . 76 96 Shots Fired 97 | . 60 37 Gun 97 | . 60 37 Cannon . | . . . Launcher . | . . . Special . | . . . Kinetic 43 | . 30 13 Thermal 34 | . 13 21 Explosive . | . . . Electromagnetic 20 | . 17 3 Robot Hit Streak 8 | . 6 8 Robot Miss Streak 3 | . 3 3 Penetration Max . | . . . Secondary Targets 1 | . 1 . Max Gunslinging Chain 1 | . 1 . Shots Hit Robots 61 | . 35 26 Core Hits 27 | . 21 6 Critical Kills . | . . . Critical Parts Destroyed . | . . . Critical Strikes 5 | . 2 3 Burn 5 | . 2 3 Melee Attacks . | . . . Impact . | . . . Slashing . | . . . Piercing . | . . . Sneak Attacks . | . . . Combat Hostiles . | . . . Follow-up Attacks . | . . . Damage Inflicted 857 | . 478 379 Guns 857 | . 478 379 Cannons . | . . . Explosions . | . . . Melee . | . . . Ramming . | . . . Kinetic 271 | . 138 133 Thermal 365 | . 146 219 Explosive . | . . . Electromagnetic 221 | . 194 27 Impact . | . . . Slashing . | . . . Piercing . | . . . Highest Corruption . | . . . Average Corruption . | . . . Corruption Purged . | . . . Corruption Blocked . | . . . Overload Shots . | . . . Overflow Damage . | . . . Projectiles . | . . . Explosions . | . . . Melee . | . . . Knockbacks . | . . . Impact . | . . . Kinetic . | . . . Secondary . | . . . Self-Inflicted Damage . | . . . Shots . | . . . Rammed . | . . . Targets Rammed . | . . . Kicked . | . . . Crushed . | . . . Highest Temperature 89 | . 84 89 Average Temperature 33 | . 42 22 Received Heat Transfer 351 | . 174 177 Siege Activations . | . . . Robots Corrupted . | . . . Combat Hostiles . | . . . Parts Fried . | . . . Impact Corruptions . | . . . Robots Melted . | . . . Combat Hostiles . | . . . Parts Melted 5 | . . 5 Heat Transferred 1295 | . 518 777 Parts Sabotaged . | . . . Parts Stolen . | . . . Parts Stripped . | . . . Power Chain Reactions . | . . . Alert | -11 -10 -9 ------- Run | Yrd Mat Mat Peak Influence 220 | . 220 112 Initial 67 | . . 67 Average 76 | . 83 89 Maximum Alert Level 1 | . 1 . Low Security (%) 96 | 100 94 100 Level 1 3 | . 5 . Level 2 . | . . . Level 3 . | . . . Level 4 . | . . . Level 5 . | . . . High Security . | . . . Max Security . | . . . Squads Dispatched 4 | . 4 . Investigation 3 | . 3 . Extermination . | . . . Reinforcement 1 | . 1 . Assault . | . . . Garrison . | . . . Intercept . | . . . Searches Triggered . | . . . Construction Impeded . | . . . Haulers Reinforced . | . . . Active Scanning Responses . | . . . Cargo Convoy Interrupts . | . . . Stealth | -11 -10 -9 --------- Run | Yrd Mat Mat Distress Signals 1 | . 1 . Communications Jammed . | . . . Distress Signals . | . . . Times Spotted 22 | . 15 7 Peak Tracking Total 4 | . 3 4 Tactical Retreats . | . . . Traps | -11 -10 -9 ------- Run | Yrd Mat Mat Traps Triggered 1 | . 1 . Indirectly . | . . . Trap Hack Attempts . | . . . Triggered . | . . . Disarmed . | . . . Reprogrammed . | . . . Reused . | . . . Traps Extracted . | . . . Installed . | . . . Triggered . | . . . Machines | -11 -10 -9 ---------- Run | Yrd Mat Mat Machines Disabled . | . . . Max in Single Turn . | . . . Machines Repaired . | . . . Machines Dismantled . | . . . Machines Sabotaged . | . . . Overloaded Fab Kills . | . . . Hacking | -11 -10 -9 --------- Run | Yrd Mat Mat Machines Accessed 7 | . 6 1 Terminals 4 | . 3 1 Fabricators . | . . . Repair Stations 1 | . 1 . Recycling Units 2 | . 2 . Scanalyzers . | . . . Garrison Access . | . . . Total Hacks 14 | . 11 3 Successful 8 | . 8 . Failed 6 | . 3 3 Catastrophic 1 | . 1 . Database Lockouts . | . . . Manual 5 | . 5 . Terminals 10 | . 7 3 Fabricators . | . . . Repair Stations 1 | . 1 . Recycling Units 3 | . 3 . Scanalyzers . | . . . Garrison Access . | . . . Terminal Hacks 4 | . 4 . Terminal Index 1 | . 1 . Alert Level 2 | . 2 . Unreport Threat 1 | . 1 . Fabricator Hacks . | . . . Repair Station Hacks . | . . . Recycling Unit Hacks . | . . . Scanalyzer . | . . . Garrison Access Hacks . | . . . Unauthorized Hacks 4 | . 4 . Terminals 1 | . 1 . Botnet 1 | . 1 . Fabricators . | . . . Repair Stations 1 | . 1 . Mechanics 1 | . 1 . Recycling Units 2 | . 2 . Tunnel 2 | . 2 . Scanalyzers . | . . . Garrison Access . | . . . Data Cores Recovered 1 | . 1 . Used . | . . . Hacking Detections 4 | . 3 1 Full Trace Events . | . . . Feedback Events . | . . . Feedback Blocked . | . . . Robot Schematics Acquired . | . . . Robots Built . | . . . Authchips . | . . . Time . | . . . Total Robot Build Rating . | . . . Part Schematics Acquired . | . . . Parts Built . | . . . Authchips . | . . . Time . | . . . Total Part Build Rating . | . . . Parts Repaired . | . . . Time . | . . . Parts Recycled . | . . . Recycled Matter . | . . . Retrieved Matter . | . . . Retrieved Components . | . . . Parts Scanalyzed . | . . . Part Schematics Acquired . | . . . Parts Damaged . | . . . Bothacking | -11 -10 -9 ------------ Run | Yrd Mat Mat Used RIF Installer . | . . . Robots Hacked . | . . . Non-combat . | . . . Combat . | . . . Robot Hacks Applied . | . . . Relay Couplers Released . | . . . Fabnet Peak Effective % . | . . . Robots Rewired . | . . . Allies Hacked . | . . . Hacks Repelled . | . . . Allies | -11 -10 -9 -------- Run | Yrd Mat Mat Total Allies . | . . . Largest Group . | . . . Highest-Rated Group . | . . . Highest-Rated Ally . | . . . Total Orders . | . . . Ally Attacks . | . . . Total Damage . | . . . Kills . | . . . Allies Corrupted . | . . . Allies Melted . | . . . Intel | -11 -10 -9 ------- Run | Yrd Mat Mat Robot Analysis Total . | . . . Derelict Logs Recovered . | . . . Drone Launches . | . . . Drone Recoveries . | . . . Exploration | -11 -10 -9 ------------- Run | Yrd Mat Mat Turns Passed 963 | 94 647 222 Spaces Moved 385 | 53 235 97 Core 1 | 1 . . Treads 384 | 52 235 97 Legs . | . . . Wheels . | . . . Hover . | . . . Flight . | . . . Fastest Speed 50 | 50 160 160 Average Speed 159 | 157 160 160 Slowest Speed 160 | 160 160 160 Overloaded Moves . | . . . Propulsion Burnouts . | . . . Robots Hopped . | . . . Cave-ins Triggered . | . . . Exploration Rate (%) 20 | 4 44 13 Regions Visited 2 Branch Regions . Pre-discovered Areas 2 | . 2 . Known Exits Taken . | . . . Unknown Exits Taken 2 | 1 1 . Scrap Searched . | . . . Spaces Dug . | . . . Terrain Destroyed . | . . . Melee . | . . . Projectile . | . . . AOE . | . . . Terrain Rammed . | . . . Walls Destroyed . | . . . Machines Disabled . | . . . Actions | -11 -10 -9 --------- Run | Yrd Mat Mat Total 632 | 60 446 126 Wait 171 | . 171 . Move 383 | 52 234 97 Hop . | . . . Pick Up 12 | 2 6 4 Fast Attach 10 | 6 2 2 Attach 2 | . 1 1 Detach 1 | . 1 . Swap . | . . . Drop 2 | . 1 1 Fire 51 | . 30 21 Melee . | . . . Ram . | . . . Kick . | . . . Crush . | . . . Escape Stasis . | . . . Rewire . | . . . Trap . | . . . Miscellaneous . | . . . Route ------- -11/Scrapyard -10/Materials (discovered 2 exits: *Mat / [*Min]) -9/Materials History --------- Turn | Location | Event 7 | -11/Scrapyard | Discovered new exit (range 15) 95 | -11/Scrapyard | Entered Materials 327 | -10/Materials | Build established: Mutant 339 | -10/Materials | Discovered new exit (range 13) 670 | -10/Materials | Discovered new exit (range 11) 742 | -10/Materials | Entered another Materials area 742 | -9/Materials | Evolved 2 slots: Propulsion x1, Utility x1 964 | -9/Materials | Self-destructed Last Messages --------------- 00851_ Beam Rifle melted. 00851_ Y-45 Defender destroyed. 00877_ Acquired 25 matter. 00879_ Acquired 3 matter. 00892_ Acquired Hvy. Assault Rifle. 00903_ Acquired Disposable Heat Sink. 00910_ K-01 Serf collects debris. 00929_ Lgt. Treads severed. 00931_ Acquired Lgt. Treads. 00931_ Lgt. Treads destroyed. 00936_ Ion Engine destroyed. 00938_ L-31 Rogue suffers critical hit (Burn). 00941_ Hrd. Light Armor Plating severed. 00944_ Assault Rifle severed. 00946_ Heat Sink destroyed. 00946_ Core Shielding melted. 00946_ L-31 Rogue destroyed. 00947_ K-01 Serf collects debris. 00952_ Lgt. Treads destroyed. 00954_ K-01 Serf collects debris. Map ----- +----------------------------------------------------+ | ???????????????????????????????????????????? | | ???????????????????????????????????????????? | | ???????????????????????????????????????????? | | ???????????????????????????????????????????? | | ???????????????????????????????????????????? | | ???????????????????????????????????????????? | | ???????????????????????????????????????????? | | ???????????????????????????????????????????? | | ???????????????????????????????????????????? | | ???????????????????????????????????????????? | | ???????????????????????????????????????????? | | ???????????????????????????????????????????? | | ???????????????????????????????????????????? | | ???????????????????????????????????????????? | | ???????????????????????????????????????????? | | ???????????????????????????????##??????????? | | ?????????????????????????????? ??????????? | | ?????????????????????????????? ???????????? | | ????????????????????????????? ????????????? | | ????????????????????????#####/#####????????? | | ????????????????????????# !g #????????? | | ????????????????????????# g #????????? | | ????????????????????????# m ! #????????? | | ????????????????????????# / = #????????? | | ????????????????????????# % ur [ #????????? | | ????????????????????????#@[ #????????? | | ????????????????????????# #????????? | | ?????????????##########?# k #????????? | | ????????????? ###+#########????????? | | ?????????????? """ # #??????????????? | | ??????????????""""" # #??????????????? | | ????????????? """"" + % #??????????????? | | ????????????# """"" # #??????????????? | | ????????????# """ # #??????????????? | | ????????????# ## ##??????????????? | | ????????????# ## #???????????????? | | ????????????############ #???????????????? | | ???????????????????????# #???????????????? | | ???????????????????????# #???????????????? | | ???????????????????????# #???????????????? | | ???????????????????????# #???????????????? | | ???????????????????????# #???????????????? | | ???????????????????????# #???????????????? | | ???????????????????????# #???????????????? | | ???????????????????????# #???????????????? | | ???????????????????????# #???????????????? | | ???????????????????????# #???????????????? | | ???????????????????????# ###########?????? | | ???????????????????????# # #?????? | | ???????????????????????# # #?????? | +----------------------------------------------------+ Best States ------------- Heat Dissipation 38 Energy Generation 10 Energy Capacity 250 Matter Stores 300 Matter Capacity 300 Sight Range 16 Terrain Scan Density 10 Armor Coverage 150 Evasion (%) 40 Recoil Reduction 2 Item Schematics ----------------- None Robot Schematics ------------------ None Fabricated ------------ Nothing Alien Tech Used ----------------- None Achievements -------------- None Challenges ------------ None Game ------ Seed TerrabombMiningWeb Manual? 0 Play Time 00:07:01 Cumulative 444.2 hours Start 2024.06.10 @ 22:55:26 End 2024.06.10 @ 23:01:02 Sessions 1 Manual Loads 0 Difficulty Rogue Special Mode None Game No. 495 Rogue 495 Adventurer 0 Explorer 0 Win Type - Total 36 Types 24/3/8/1/0/0/0/0/0 Lore% 74 Gallery% 84 Achievement% 64 Wizard Run 0 Options --------- Layout 1 ASCII 1 Keyboard 1 Movement Numpad Keybinds 0 Fullscreen 1 Font 24/Tamsyn Map View 50x35 Zoom Use 0% Tactical HUD 1 Map Filters NONE Filters NONE Steam 1 RUN: b298f23e-0348-4b3f-ac4d-31b70361f5ad